bitfinex-derivatives/quotes_SOLF0:USTF0_20250923
["timestamp","ask_amount","ask_price","bid_price","bid_amount"]
[1758651667013,7.19,216.44,216.36,1.65940722]
[1758651667217,1.15547316,216.43,216.37,4.1574]
[1758651667418,1.15547316,216.43,216.36,1.65940722]
[1758651667419,7.19,216.44,216.36,1.65940722]
[1758651667614,117.36,216.45,216.41,4.1566]
[1758651667828,117.36,216.45,216.41,11.4366]
[1758651668025,117.36,216.45,216.41,7.28]
[1758651668419,117.36,216.45,216.39,1.65940722]
[1758651668623,117.36,216.45,216.37,7.28]
[1758651669425,117.36,216.45,216.39,4.157]
[1758651670426,117.36,216.45,216.37,7.28]
[1758651671127,117.36,216.45,216.37,11.4374]
[1758651671521,117.36,216.45,216.37,7.28]
[1758651671717,117.36,216.45,216.39,5.81650722]
[1758651671929,117.36,216.45,216.37,7.28]
[1758651672225,117.36,216.45,216.38,1.65940722]
[1758651672425,7.68,216.44,216.33,7.13]
[1758651672622,1.15546487,216.43,216.33,8.78940722]
[1758651672815,9.33940722,216.44,216.33,12.94760722]
[1758651673021,9.33940722,216.44,216.33,8.78940722]
[1758651673022,4.1568,216.41,216.33,8.78940722]
[1758651673423,9.33940722,216.44,216.33,8.78940722]
[1758651673617,4.1573,216.39,216.33,8.78940722]
[1758651673817,7.68,216.4,216.29,7.13]
[1758651674018,1.1556559,216.39,216.29,7.13]
[1758651674227,1.1556559,216.38,216.29,7.13]
[1758651674527,1.1556559,216.37,216.29,7.13]
[1758651674727,7.68,216.4,216.29,7.13]
[1758651674929,4.1579,216.36,216.29,7.13]
[1758651675122,7.68,216.37,216.29,7.13]
[1758651676218,1.15583576,216.36,216.29,7.13]
[1758651676418,7.68,216.37,216.29,7.13]
[1758651676624,1.15584433,216.36,216.29,7.13]
[1758651676820,7.68,216.37,216.29,7.13]
[1758651677022,1.15587598,216.36,216.25,7.13]
[1758651677225,7.68,216.34,216.25,7.13]
[1758651677822,4.1584,216.33,216.25,7.13]
[1758651678228,1.65940722,216.37,216.27,1.65940722]
[1758651678529,7.68,216.32,216.21,11.00164841]
[1758651678830,9.33940722,216.32,216.21,8.78940722]
[1758651679334,7.68,216.32,216.23,4.1602]
[1758651679533,7.68,216.32,216.24,7.13]
[1758651679830,7.68,216.36,216.27,1.65940722]
[1758651680022,7.68,216.36,216.28,4.1591]
[1758651680023,11.8379,216.36,216.28,4.1591]
[1758651680535,4.1572,216.39,216.29,1.65940722]
[1758651680827,1.15582552,216.38,216.3,7.13]
[1758651681026,1.15582552,216.37,216.3,7.13]
[1758651681229,74.01930722,216.35,216.23,7.13]
[1758651681440,7.68,216.33,216.23,7.13]
[1758651681631,1.15581794,216.32,216.23,7.13]
[1758651681936,4.159,216.3,216.23,7.13]
[1758651683734,9.33940722,216.33,216.23,7.13]
[1758651684030,40.15940722,216.36,216.26,7.43]
[1758651684225,1.15597985,216.35,216.26,7.43]
[1758651684430,1.15597985,216.34,216.26,7.43]
[1758651684626,1.15597985,216.33,216.26,7.43]
[1758651684937,1.15598843,216.32,216.26,7.43]
[1758651685235,5.81770722,216.33,216.26,7.43]
[1758651685434,1.15598898,216.32,216.26,7.43]
[1758651685636,4.1587,216.31,216.22,13.24980722]
[1758651686537,1.15603807,216.3,216.22,13.24980722]
[1758651686735,1.65940722,216.33,216.22,9.08940722]
[1758651686940,1.15602092,216.32,216.22,9.08940722]
[1758651687132,13.02790722,216.33,216.22,9.08940722]
[1758651687441,115.85,216.38,216.26,7.43]
[1758651687641,1.15582781,216.37,216.26,7.43]
[1758651687834,1.15582781,216.36,216.26,7.43]
[1758651688038,1.15582781,216.35,216.26,7.43]
[1758651688341,1.15582781,216.34,216.28,4.1591]
[1758651688540,4.1579,216.36,216.28,4.1591]
[1758651688735,1.15582698,216.35,216.26,7.43]
[1758651688936,1.15582698,216.34,216.28,1.65940722]
[1758651689139,13.02680722,216.38,216.29,9.08940722]
[1758651689336,1.15582652,216.37,216.29,9.08940722]
[1758651689537,1.15582652,216.36,216.29,9.08940722]
[1758651689737,8.36582652,216.35,216.26,1.65940722]
[1758651689938,1.15582652,216.34,216.26,1.65940722]
[1758651690338,7.21,216.35,216.25,11.5898]
[1758651690339,4.1587,216.32,216.25,11.5898]
[1758651690538,4.1587,216.32,216.25,7.43]
[1758651690740,4.1587,216.32,216.26,1.65940722]
[1758651691045,8.36599596,216.31,216.26,1.65940722]
[1758651691345,4.1589,216.3,216.26,1.65940722]
[1758651692035,11.3689,216.3,216.26,1.65940722]
[1758651692433,7.21,216.3,216.26,1.65940722]
[1758651692645,117.12,216.34,216.26,9.08940722]
[1758651692846,1.15598013,216.33,216.26,9.08940722]
[1758651693038,1.15598013,216.32,216.26,9.08940722]
[1758651693240,117.12,216.34,216.26,9.08940722]
[1758651693439,1.15594838,216.33,216.26,9.08940722]
[1758651693740,8.36594838,216.32,216.26,1.65940722]
[1758651693941,7.21,216.32,216.26,1.65940722]
[1758651694644,7.21,216.3,216.23,1.65940722]
[1758651695042,7.21,216.27,216.23,1.65940722]
[1758651695849,4.1589,216.3,216.23,9.08940722]
[1758651696241,1.15607392,216.29,216.23,1.65940722]
[1758651696440,7.21,216.3,216.23,1.65940722]
[1758651696753,1.15607821,216.29,216.23,1.65940722]
[1758651696952,11.3689,216.3,216.23,1.65940722]
[1758651697153,1.15607821,216.29,216.23,1.65940722]
[1758651697348,11.3689,216.3,216.23,1.65940722]
[1758651697550,1.15607821,216.29,216.23,1.65940722]
[1758651697743,7.21,216.3,216.23,1.65940722]
[1758651698051,4.1596,216.27,216.2,5.82020722]
[1758651699053,7.21,216.28,216.21,4.1605]
[1758651699454,7.21,216.28,216.22,4.1603]
[1758651699950,7.21,216.28,216.2,1.65940722]
[1758651700148,7.21,216.28,216.21,4.1605]
[1758651700843,7.21,216.28,216.22,4.1603]
[1758651701957,7.21,216.32,216.23,9.08940722]
[1758651702155,1.15610111,216.31,216.23,9.08940722]
[1758651702455,7.21,216.32,216.23,9.08940722]
[1758651702456,11.3686,216.32,216.26,4.1595]
[1758651702955,5.3148117,216.31,216.25,7.43]
[1758651703155,8.86940722,216.32,216.22,5.81960722]
[1758651703352,1.15602959,216.31,216.22,1.65940722]
[1758651703562,8.86940722,216.32,216.22,1.65940722]
[1758651703745,1.15602931,216.31,216.22,1.65940722]
[1758651703949,1.1560377,216.3,216.21,13.25000722]
[1758651704157,7.21,216.31,216.21,13.25000722]
[1758651704459,4.1594,216.28,216.21,11.5906]
[1758651705755,8.86940722,216.29,216.22,4.1602]
[1758651705955,7.21,216.29,216.21,9.08940722]
[1758651707456,4.1596,216.27,216.21,9.08940722]
[1758651707662,4.1596,216.27,216.21,7.43]
[1758651707958,78.58912096,216.32,216.17,7.43]
[1758651707959,7.21,216.25,216.17,7.43]
[1758651708153,8.86940722,216.25,216.17,7.43]
[1758651708460,13.02930722,216.25,216.17,7.43]
[1758651709061,13.02930722,216.25,216.17,11.5913]
[1758651709259,7.21,216.25,216.18,1.65940722]
[1758651709957,7.21,216.25,216.19,4.1609]
[1758651710549,122.83850722,216.29,216.19,7.43]
[1758651710753,1.15621443,216.28,216.19,7.43]
[1758651710950,122.83850722,216.29,216.19,7.43]
[1758651711160,1.15621406,216.28,216.19,7.43]
[1758651711360,122.83850722,216.29,216.19,7.43]
[1758651711561,5.31561406,216.28,216.22,4.1602]
[1758651711751,4.1594,216.28,216.22,4.1602]
[1758651712664,1.65940722,216.29,216.23,4.1601]
[1758651713358,7.03,216.31,216.24,4.1599]
[1758651713562,1.15611039,216.3,216.24,4.1599]
[1758651713764,8.18611039,216.29,216.24,4.1599]
[1758651713964,5.81800722,216.32,216.25,11.1697]
[1758651714165,1.15611002,216.31,216.25,11.1697]
[1758651714462,7.03,216.37,216.29,7.01]
[1758651714758,1.15584528,216.36,216.29,7.01]
[1758651714965,1.15584528,216.35,216.29,7.01]
[1758651715159,1.15584528,216.34,216.29,7.01]
[1758651715365,1.15584528,216.33,216.29,7.01]
[1758651715553,7.03,216.35,216.29,7.01]
[1758651715758,7.03,216.33,216.29,7.01]
[1758651716464,1.15587629,216.32,216.29,7.01]
[1758651716660,7.03,216.33,216.29,7.01]
[1758651716858,1.15587629,216.32,216.29,7.01]
[1758651717058,4.1578,216.36,216.29,7.01]
[1758651717258,1.15587601,216.35,216.29,7.01]
[1758651717461,1.15587601,216.34,216.28,7.01]
[1758651717662,1.15587601,216.33,216.27,8.66940722]
[1758651717858,1.15587601,216.32,216.29,11.1689]
[1758651718063,4.1578,216.36,216.29,11.1689]
[1758651718258,7.03,216.34,216.25,3.87164841]
[1758651718566,1.1558761,216.33,216.24,15.04154841]
[1758651718760,1.1558761,216.33,216.24,11.1699]
[1758651719266,1.1558761,216.33,216.24,15.04154841]
[1758651719862,4.1587,216.32,216.24,15.04154841]
[1758651720169,8.1858761,216.31,216.24,7.01]
[1758651720467,1.1558761,216.3,216.22,4.1604]
[1758651721061,1.1558761,216.3,216.23,7.01]
[1758651721364,1.15597245,216.29,216.23,3.87164841]
[1758651721568,1.15597245,216.28,216.24,7.01]
[1758651721763,7.03,216.32,216.24,7.01]
[1758651722067,1.15613283,216.31,216.24,7.01]
[1758651722266,1.15613283,216.3,216.24,7.01]
[1758651722471,8.18613283,216.29,216.24,7.01]
[1758651722664,1.15613283,216.28,216.24,7.01]
[1758651723373,8.18613283,216.28,216.24,7.01]
[1758651723561,7.03,216.28,216.24,7.01]
[1758651723768,4.1585,216.32,216.24,7.01]
[1758651723966,1.15613339,216.31,216.24,7.01]
[1758651724276,1.15613339,216.3,216.26,4.1596]
[1758651724569,7.03,216.32,216.26,11.1696]
[1758651724767,1.15602927,216.31,216.26,11.1696]
[1758651725073,1.15602927,216.3,216.27,4.1593]
[1758651725274,7.03,216.32,216.28,7.01]
[1758651725469,1.15598019,216.31,216.24,64.7116]
[1758651725773,124.03,216.36,216.29,4.159]
[1758651725970,1.15598,216.35,216.26,71.7162]
[1758651726171,1.15598,216.34,216.28,7.01]
[1758651726368,117.0,216.38,216.28,7.01]
[1758651726565,1.15582671,216.37,216.28,7.01]
[1758651726768,1.15582671,216.36,216.28,7.01]
[1758651726969,117.0,216.38,216.28,7.01]
[1758651727170,1.15573164,216.37,216.28,7.01]
[1758651727367,1.15573164,216.36,216.28,7.01]
[1758651727563,1.15573164,216.35,216.33,11.1682]
[1758651727766,124.03,216.4,216.33,11.1682]
[1758651727963,1.1557631,216.39,216.33,11.1682]
[1758651728173,8.1857631,216.38,216.33,11.1682]
[1758651728374,8.1857631,216.38,216.33,7.01]
[1758651728375,1.1557631,216.37,216.33,7.01]
[1758651728573,1.1557631,216.36,216.33,7.01]
[1758651728768,7.03,216.38,216.33,7.01]
[1758651728967,1.15571418,216.37,216.31,4.1586]
[1758651729167,1.15571418,216.36,216.29,7.01]
[1758651729473,1.15571418,216.35,216.29,7.01]
[1758651729673,7.03,216.39,216.29,7.01]
[1758651729873,1.15579488,216.38,216.29,7.01]
[1758651730077,1.15579488,216.37,216.29,7.01]
[1758651730373,7.03,216.39,216.29,7.01]
[1758651730374,1.15579488,216.36,216.29,7.01]
[1758651730674,1.15579488,216.35,216.29,7.01]
[1758651730879,4.1577,216.37,216.3,4.1587]
[1758651731078,1.15579479,216.36,216.3,4.1587]
[1758651731278,1.15579479,216.35,216.31,7.01]
[1758651731475,4.1577,216.37,216.31,7.01]
[1758651731676,8.18579479,216.36,216.31,7.01]
[1758651731878,1.15579479,216.35,216.31,7.01]
[1758651732080,1.15579479,216.35,216.26,7.52]
[1758651732279,109.28,216.34,216.26,7.52]
[1758651732480,1.15579479,216.33,216.26,7.52]
[1758651732777,7.14,216.37,216.26,7.52]
[1758651733085,4.158,216.35,216.28,4.1592]
[1758651733274,1.1558404,216.34,216.28,4.1592]
[1758651733477,1.1558404,216.33,216.28,11.6792]
[1758651733672,4.158,216.35,216.28,11.6792]
[1758651733874,1.15587643,216.34,216.24,3.88842056]
[1758651734072,8.29587643,216.33,216.23,7.52]
[1758651734382,1.15587643,216.32,216.23,7.52]
[1758651734775,5.31447643,216.32,216.24,4.1599]
[1758651734975,7.14,216.3,216.2,3.88842056]
[1758651735171,7.14,216.28,216.18,11.40842056]
[1758651735382,4.1598,216.26,216.18,15.56942056]
[1758651735978,116.96,216.27,216.18,7.52]
[1758651736182,1.15622601,216.26,216.18,7.52]
[1758651736377,1.15622601,216.25,216.18,7.52]
[1758651736579,116.96,216.27,216.18,7.52]
[1758651736781,1.15632408,216.26,216.18,7.52]
[1758651737084,1.15632408,216.25,216.18,7.52]
[1758651737277,1.15632408,216.24,216.18,7.52]
[1758651737583,116.96,216.29,216.19,7.52]
[1758651737784,1.15621647,216.28,216.19,7.52]
[1758651737979,1.15621647,216.27,216.19,7.52]
[1758651738188,1.15621647,216.26,216.19,7.52]
[1758651738381,116.96,216.3,216.19,11.6809]
[1758651738581,1.15618462,216.29,216.19,11.6809]
[1758651738782,1.15618462,216.28,216.19,11.6809]
[1758651738987,1.15618462,216.27,216.19,11.6809]
[1758651739179,1.15618462,216.26,216.19,11.6809]
[1758651739482,1.15618462,216.25,216.19,7.52]
[1758651739686,8.29618462,216.24,216.19,7.52]
[1758651739885,7.14,216.24,216.19,7.52]
[1758651740085,118.11631823,216.23,216.13,7.52]
[1758651740384,8.29641386,216.22,216.13,7.52]
[1758651740584,7.14,216.22,216.13,7.52]
[1758651741491,7.14,216.2,216.08,11.40842056]
[1758651741682,1.15647178,216.19,216.08,7.52]
[1758651741882,1.15674451,216.18,216.08,7.52]
[1758651742183,2.59435359,216.22,216.12,7.52]
[1758651742184,0.74014576,216.22,216.12,7.52]
[1758651742388,0.74014576,216.22,216.14,7.52]
[1758651742586,0.74014576,216.22,216.19,4.161]
[1758651742888,61.0,216.28,216.18,7.52]
[1758651743083,1.15633101,216.27,216.18,7.52]
[1758651743299,1.15640951,216.26,216.18,7.52]
[1758651743591,7.14,216.27,216.18,7.52]
[1758651743782,1.15639372,216.26,216.18,11.681]
[1758651743982,7.14,216.27,216.18,7.52]
[1758651744184,1.15639405,216.26,216.18,7.52]
[1758651744389,44.05305359,216.32,216.23,4.1602]
[1758651744693,1.15632972,216.31,216.23,4.1602]
[1758651744884,1.15632972,216.3,216.23,4.1602]
[1758651745083,1.15632972,216.29,216.23,4.1602]
[1758651745277,1.15632972,216.28,216.23,4.1602]
[1758651745482,7.14,216.31,216.23,4.1602]
[1758651745676,1.15624894,216.3,216.26,7.32]
[1758651745881,7.14,216.34,216.23,7.32]
[1758651746083,1.15610193,216.33,216.27,7.32]
[1758651746282,7.14,216.38,216.27,7.32]
[1758651746592,1.15598078,216.37,216.29,7.32]
[1758651746889,7.87878368,216.42,216.3,64.6926]
[1758651747083,1.15576296,216.41,216.33,64.6844]
[1758651747283,0.73878368,216.42,216.32,72.0077]
[1758651747485,1.15560881,216.41,216.32,72.0077]
[1758651747782,0.73878368,216.42,216.36,4.1576]
[1758651747986,1.15560877,216.41,216.36,11.4776]
[1758651748182,0.73878368,216.42,216.36,11.4776]
[1758651748386,1.15560877,216.41,216.37,7.32]
[1758651748696,0.73878368,216.42,216.37,7.32]
[1758651749186,7.14,216.46,216.39,7.32]
[1758651749378,356.76,216.52,216.39,7.32]
[1758651749579,116.09529002,216.51,216.41,7.32]
[1758651749776,1.15529002,216.5,216.41,7.32]
[1758651749979,1.15529002,216.49,216.42,4.1565]
[1758651750183,1.15529002,216.48,216.41,7.32]
[1758651750388,114.94,216.51,216.41,7.32]
[1758651750588,1.15528984,216.5,216.41,7.32]
[1758651750791,1.15528984,216.49,216.41,7.32]
[1758651750985,1.15528984,216.48,216.41,7.32]
[1758651751186,114.94,216.51,216.41,7.32]
[1758651751382,1.15529012,216.5,216.41,7.32]
[1758651751588,473.7,216.52,216.41,7.32]
[1758651751790,1.15518126,216.51,216.41,7.32]
[1758651752085,356.76,216.52,216.41,7.32]
[1758651752286,349.62,216.52,216.44,7.32]
[1758651752787,7.14,216.57,216.47,7.32]
[1758651753896,116.94,216.58,216.47,7.32]
[1758651754094,116.94,216.58,216.47,71.9628]
[1758651754298,8.32205389,216.62,216.51,7.32]
[1758651755090,12.47485389,216.62,216.51,7.32]
[1758651755294,8.32205389,216.62,216.51,7.32]
[1758651755890,4.1532,216.6,216.51,7.32]
[1758651756987,8.32205389,216.62,216.51,7.32]
[1758651757597,4.153,216.61,216.51,7.32]
[1758651758295,8.32205389,216.62,216.51,71.951]
[1758651758493,349.52,216.65,216.55,11.474]
[1758651758694,116.86,216.64,216.55,11.474]
[1758651759796,116.86,216.64,216.55,7.32]
[1758651760401,116.86,216.64,216.56,4.1539]
[1758651760801,349.52,216.65,216.56,4.1539]
[1758651761001,466.36,216.65,216.56,4.1539]
[1758651761894,349.52,216.65,216.57,64.6133]
[1758651762094,123.98,216.67,216.58,7.32]
[1758651763093,123.98,216.67,216.59,4.1532]
[1758651763296,123.98,216.67,216.51,7.32]
[1758651763600,123.98,216.67,216.52,64.6285]
[1758651763800,123.98,216.67,216.53,7.32]
[1758651764099,7.14,216.64,216.53,11.4743]
[1758651764991,64.592,216.65,216.53,7.32]
[1758651765196,71.732,216.65,216.53,7.32]
[1758651765900,7.14,216.65,216.53,7.32]
[1758651767296,11.2923,216.65,216.53,7.32]
[1758651767500,116.8,216.64,216.53,7.32]
[1758651768095,7.14,216.63,216.53,7.32]
[1758651768800,11.2926,216.63,216.53,11.4744]
[1758651769201,7.14,216.63,216.53,11.4744]
[1758651769502,7.14,216.63,216.53,7.32]
[1758651769693,7.14,216.71,216.54,64.6226]
[1758651769896,85.44,216.7,216.57,7.32]
[1758651770300,85.44,216.7,216.6,4.1531]
[1758651770599,85.44,216.7,216.59,7.32]
[1758651770802,89.5912,216.7,216.62,4.1527]
[1758651771399,4.1512,216.7,216.62,4.1527]
[1758651771598,20.92006965,216.77,216.63,7.32]
[1758651771800,116.78,216.76,216.64,64.5925]
[1758651772095,123.92,216.77,216.65,7.32]
[1758651772302,128.0699,216.77,216.67,4.1518]
[1758651772496,123.92,216.77,216.65,7.32]
[1758651772695,123.92,216.77,216.66,64.5861]
[1758651772895,123.92,216.77,216.65,7.32]
[1758651773097,13.50320627,216.84,216.69,64.5773]
[1758651773408,21.09320627,216.84,216.72,7.51]
[1758651773800,7.59,216.82,216.67,7.51]
[1758651774003,106.82,216.81,216.67,7.51]
[1758651774195,4.1495,216.79,216.67,7.51]
[1758651774402,7.59,216.91,216.74,64.5632]
[1758651774701,64.5098,216.92,216.74,64.5632]
[1758651774702,7.59,216.88,216.75,7.51]
[1758651774900,11.738,216.88,216.79,4.1495]
[1758651775301,11.738,216.88,216.75,7.51]
[1758651775501,11.738,216.88,216.78,4.1496]
[1758651775697,7.59,216.88,216.78,4.1496]
[1758651775898,7.59,216.88,216.78,11.6596]
[1758651776099,7.59,216.88,216.78,7.51]
[1758651776301,7.59,216.87,216.73,7.51]
[1758651776497,109.09,216.87,216.73,7.51]
[1758651776901,109.09,216.87,216.74,4.1504]
[1758651777098,109.09,216.87,216.73,7.51]
[1758651778004,4.1486,216.84,216.75,4.1502]
[1758651778309,109.09,216.87,216.75,4.1502]
[1758651778504,4.1484,216.85,216.75,4.1502]
[1758651779208,4.1488,216.83,216.73,7.51]
[1758651780210,7.59,216.84,216.74,4.1504]
[1758651780409,4.1483,216.86,216.73,7.51]
[1758651780612,7.59,216.89,216.75,7.51]
[1758651780906,4.148,216.87,216.75,7.51]
[1758651781706,79.38,216.88,216.75,7.51]
[1758651782010,7.59,216.82,216.68,7.51]
[1758651782216,7.59,216.82,216.7,7.51]
[1758651783611,4.1496,216.79,216.7,11.6612]
[1758651785614,7.59,216.82,216.72,4.1508]
[1758651785804,1.15354965,216.81,216.72,4.1508]
[1758651786009,7.59,216.82,216.72,4.1508]
[1758651786209,1.1535491,216.81,216.72,4.1508]
[1758651786415,1.1535491,216.8,216.7,7.51]
[1758651786716,7.59,216.82,216.7,7.51]
[1758651786906,1.15354951,216.81,216.7,7.51]
[1758651787112,1.15354951,216.8,216.7,7.51]
[1758651787313,7.59,216.78,216.7,7.51]
[1758651787605,1.15354951,216.77,216.66,11.6618]
[1758651787911,4.1505,216.74,216.66,7.51]
[1758651788108,64.5581,216.76,216.66,7.51]
[1758651788304,8.7437608,216.75,216.66,7.51]
[1758651791315,107.22,216.74,216.62,7.51]
[1758651791617,7.59,216.74,216.62,7.51]
[1758651791810,7.59,216.74,216.62,11.6626]
[1758651792120,72.1543,216.74,216.62,7.51]
[1758651792310,4.1514,216.7,216.62,7.51]
[1758651792922,4.1508,216.73,216.63,4.1526]
[1758651793420,7.59,216.74,216.63,4.1526]
[1758651793826,4.151,216.72,216.65,4.1522]
[1758651794119,7.59,216.74,216.62,7.51]
[1758651794316,7.59,216.74,216.62,11.6627]
[1758651794617,7.29,216.73,216.62,11.6627]
[1758651795824,4.1512,216.7,216.62,11.6627]
[1758651796726,7.29,216.73,216.62,7.51]
[1758651797017,7.29,216.73,216.61,64.6013]
[1758651797018,62.18,216.79,216.65,7.64]
[1758651797220,4.1502,216.76,216.65,7.64]
[1758651797418,7.29,216.75,216.65,7.64]
[1758651798019,7.29,216.75,216.65,11.792]
[1758651798422,7.29,216.76,216.6,7.64]
[1758651798717,4.151,216.71,216.63,4.1526]
[1758651799127,7.29,216.72,216.6,7.64]
[1758651799524,11.441,216.72,216.64,4.1522]
[1758651799724,11.441,216.72,216.64,11.7922]
[1758651801526,7.29,216.84,216.61,64.5994]
[1758651801730,7.29,216.84,216.71,7.64]
[1758651801917,7.29,216.84,216.72,64.5692]
[1758651802230,7.29,216.84,216.73,72.206]
[1758651802523,7.29,216.88,216.76,64.5571]
[1758651802924,7.29,216.88,216.78,4.1495]
[1758651803124,7.29,216.88,216.75,7.64]
[1758651803429,7.42,216.86,216.71,7.32]
[1758651803827,4.149,216.82,216.74,4.1503]
[1758651804029,7.42,216.82,216.71,7.32]
[1758651805220,4.1497,216.79,216.71,7.32]
[1758651807132,11.5703,216.75,216.65,7.32]
[1758651807624,4.1498,216.78,216.66,4.1518]
[1758651807826,4.1498,216.78,216.65,7.32]
[1758651808123,7.42,216.79,216.67,4.1516]
[1758651808327,7.42,216.74,216.67,4.1516]
[1758651808528,4.1503,216.75,216.67,4.1516]
[1758651808828,4.1503,216.75,216.65,7.32]
[1758651808829,7.42,216.78,216.69,7.32]
[1758651809326,7.42,216.78,216.69,11.4712]
[1758651809730,7.42,216.78,216.69,7.32]
[1758651810230,4.1499,216.77,216.69,7.32]
[1758651810430,7.42,216.78,216.69,7.32]
[1758651811433,7.42,216.78,216.61,3.82138215]
[1758651811434,7.42,216.78,216.64,7.32]
[1758651812635,4.1499,216.77,216.68,4.1514]
[1758651814233,7.42,216.7,216.59,3.82138215]
[1758651814436,7.42,216.7,216.58,7.32]
[1758651814640,7.42,216.7,216.58,11.14138215]
[1758651814838,7.42,216.7,216.58,7.32]
[1758651815134,4.1519,216.67,216.59,4.1533]
[1758651815335,64.579,216.69,216.58,7.32]
[1758651815538,7.42,216.68,216.58,7.32]
[1758651816934,4.1522,216.65,216.58,7.32]
[1758651817238,11.5722,216.65,216.56,4.1537]
[1758651817633,4.1526,216.63,216.54,7.97558215]
[1758651817835,7.42,216.65,216.53,7.32]
[1758651818737,4.1526,216.63,216.53,7.32]
[1758651819136,7.42,216.65,216.55,4.1541]
[1758651819342,7.42,216.65,216.56,7.32]
[1758651820939,4.1524,216.64,216.55,4.1541]
[1758651821341,4.1528,216.62,216.55,4.1541]
[1758651821646,11.5728,216.62,216.52,11.4745]
[1758651821941,4.1531,216.61,216.52,11.4745]
[1758651822444,7.42,216.62,216.52,7.32]
[1758651823143,7.42,216.62,216.53,4.1545]
[1758651824544,11.5729,216.62,216.53,4.1545]
[1758651825544,7.42,216.62,216.51,4.1548]
[1758651826145,11.5735,216.58,216.49,7.32]
[1758651826450,7.42,216.58,216.51,4.1548]
[1758651826652,94.62,216.67,216.54,7.32]
[1758651827549,94.62,216.67,216.56,4.1539]
[1758651827954,94.62,216.67,216.55,64.6195]
[1758651828857,94.62,216.67,216.54,7.32]
[1758651829954,7.42,216.62,216.55,4.1541]
[1758651830160,7.42,216.62,216.5,7.32]
[1758651830352,4.1533,216.6,216.52,4.1545]
[1758651830553,7.42,216.59,216.5,7.32]
[1758651831059,124.24,216.59,216.47,4.1554]
[1758651831449,128.3934,216.59,216.49,4.1552]
[1758651831651,7.42,216.59,216.48,7.32]
[1758651835057,7.42,216.59,216.51,4.1548]
[1758651835263,7.42,216.59,216.48,7.32]
[1758651836463,11.5734,216.59,216.48,7.32]
[1758651836957,11.5734,216.59,216.51,4.1548]
[1758651837357,4.1537,216.58,216.51,4.1548]
[1758651838462,7.42,216.59,216.51,4.1548]
[1758651839262,7.42,216.59,216.48,7.32]
[1758651839663,7.42,216.59,216.47,4.1556]
[1758651840563,4.1545,216.54,216.45,4.156]
[1758651841870,7.2,216.55,216.45,4.156]
[1758651842460,7.2,216.55,216.44,7.38]
[1758651842665,28.56,216.55,216.44,7.38]
[1758651842867,7.2,216.55,216.45,64.6496]
[1758651843063,7.2,216.55,216.46,7.38]
[1758651843764,4.1533,216.59,216.52,4.1547]
[1758651844067,31.0533,216.59,216.52,4.1547]
[1758651844466,4.1533,216.59,216.52,4.1547]
[1758651844669,7.2,216.6,216.49,72.016]
[1758651844975,7.2,216.68,216.51,7.38]
[1758651845274,7.2,216.66,216.51,7.38]
[1758651845671,4.1527,216.63,216.56,4.1538]
[1758651845972,4.1527,216.63,216.5,64.6344]